[Event "Early-Titled-Tuesday-Blitz-January-23-2024"]
[Site "Chess.com"]
[Date "2024.01.23"]
[Round "1"]
[White "viviania"]
[Black "secretsuperstar7"]
[Result "1/2-1/2"]
[WhiteElo "2909"]
[BlackElo "2508"]
[TimeControl "180+1"]
[EndTime "8:07:24 PST"]
[Termination "Game drawn by repetition"]

1. d4 {[%clk 0:02:59.7]} 1... Nf6 {[%clk 0:02:59.6]} 2. c4 {[%clk 0:02:59.6]}
2... e6 {[%clk 0:02:59.9]} 3. Nc3 {[%clk 0:02:59.6]} 3... Bb4 {[%clk 0:03:00.1]}
4. e3 {[%clk 0:02:59.8]} 4... O-O {[%clk 0:02:59.2]} 5. Ne2 {[%clk 0:02:59.6]}
5... c5 {[%clk 0:02:59.6]} 6. a3 {[%clk 0:02:58.2]} 6... Ba5 {[%clk 0:02:57]} 7.
dxc5 {[%clk 0:02:57.6]} 7... Bxc3+ {[%clk 0:02:48.4]} 8. Nxc3 {[%clk 0:02:57]}
8... a5 {[%clk 0:02:45]} 9. e4 {[%clk 0:02:51.7]} 9... Qc7 {[%clk 0:02:43.9]}
10. Qd6 {[%clk 0:02:42]} 10... Na6 {[%clk 0:02:32.7]} 11. Qxc7 {[%clk
0:02:31.3]} 11... Nxc7 {[%clk 0:02:33.6]} 12. Bf4 {[%clk 0:02:31]} 12... Na6
{[%clk 0:02:32.4]} 13. Bd6 {[%clk 0:02:29.9]} 13... Re8 {[%clk 0:02:32.3]} 14.
f4 {[%clk 0:01:35.9]} 14... e5 {[%clk 0:02:26.3]} 15. f5 {[%clk 0:01:20.8]}
15... b6 {[%clk 0:02:22.5]} 16. cxb6 {[%clk 0:01:19]} 16... Bb7 {[%clk
0:02:22.2]} 17. c5 {[%clk 0:00:59.7]} 17... Nxe4 {[%clk 0:02:13.3]} 18. Nxe4
{[%clk 0:00:59.1]} 18... Bxe4 {[%clk 0:02:13.3]} 19. Bb5 {[%clk 0:00:55.2]}
19... Rec8 {[%clk 0:01:50.7]} 20. Bxd7 {[%clk 0:00:46.9]} 20... Rxc5 {[%clk
0:01:50.6]} 21. Bxc5 {[%clk 0:00:39.9]} 21... Nxc5 {[%clk 0:01:51.5]} 22. Bb5
{[%clk 0:00:38.7]} 22... Rb8 {[%clk 0:01:41.3]} 23. Rc1 {[%clk 0:00:38.6]} 23...
Nb3 {[%clk 0:01:37.5]} 24. Rc7 {[%clk 0:00:34.5]} 24... h5 {[%clk 0:01:23]} 25.
Bc4 {[%clk 0:00:33.9]} 25... Rxb6 {[%clk 0:01:20.8]} 26. Bxf7+ {[%clk
0:00:30.3]} 26... Kf8 {[%clk 0:01:17.8]} 27. Be6 {[%clk 0:00:24.4]} 27... Nd4
{[%clk 0:01:15.2]} 28. Rf1 {[%clk 0:00:23]} 28... Rxb2 {[%clk 0:01:12.8]} 29.
Rf2 {[%clk 0:00:23]} 29... Rb1+ {[%clk 0:01:10.9]} 30. Kd2 {[%clk 0:00:23.1]}
30... Rb2+ {[%clk 0:01:06.2]} 31. Ke3 {[%clk 0:00:23.2]} 31... Bc2 {[%clk
0:00:37.5]} 32. Bd5 {[%clk 0:00:18.5]} 32... Nxf5+ {[%clk 0:00:27.4]} 33. Kd2
{[%clk 0:00:12.4]} 33... Be4+ {[%clk 0:00:15.7]} 34. Ke1 {[%clk 0:00:10.5]}
34... Rb1+ {[%clk 0:00:09.4]} 35. Kd2 {[%clk 0:00:08.8]} 35... Rb2+ {[%clk
0:00:09.5]} 36. Ke1 {[%clk 0:00:08.8]} 36... Rb1+ {[%clk 0:00:06.3]} 37. Kd2
{[%clk 0:00:08.9]} 37... Rb2+ {[%clk 0:00:06.7]} 1/2-1/2

[Event "Early-Titled-Tuesday-Blitz-January-23-2024"]
[Site "Chess.com"]
[Date "2024.01.23"]
[Round "1"]
[White "olawsson"]
[Black "annasargsyan_m"]
[Result "0-1"]
[WhiteElo "2152"]
[BlackElo "2564"]
[TimeControl "180+1"]
[EndTime "8:07:26 PST"]
[Termination "annasargsyan_m won on time"]

1. d4 {[%clk 0:03:00.9]} 1... d5 {[%clk 0:02:59.7]} 2. c4 {[%clk 0:03:00.4]}
2... c6 {[%clk 0:02:59.8]} 3. cxd5 {[%clk 0:03:00.1]} 3... cxd5 {[%clk
0:03:00.7]} 4. Nc3 {[%clk 0:03:00.3]} 4... e5 {[%clk 0:02:59.6]} 5. Nf3 {[%clk
0:02:56.8]} 5... e4 {[%clk 0:02:59.5]} 6. Nd2 {[%clk 0:02:50.9]} 6... Nf6 {[%clk
0:02:59]} 7. Nb3 {[%clk 0:02:50.7]} 7... Bd6 {[%clk 0:02:58.9]} 8. Bg5 {[%clk
0:02:48.8]} 8... Be6 {[%clk 0:02:54]} 9. e3 {[%clk 0:02:42.1]} 9... Nc6 {[%clk
0:02:53]} 10. Be2 {[%clk 0:02:30.5]} 10... O-O {[%clk 0:02:52.1]} 11. O-O {[%clk
0:02:30.1]} 11... h6 {[%clk 0:02:52.6]} 12. Bh4 {[%clk 0:02:29.6]} 12... Rc8
{[%clk 0:02:52.6]} 13. Nc5 {[%clk 0:02:22.2]} 13... Bxc5 {[%clk 0:02:40.8]} 14.
dxc5 {[%clk 0:02:21.8]} 14... Ne5 {[%clk 0:02:31.8]} 15. Qd4 {[%clk 0:02:12.3]}
15... Ng6 {[%clk 0:02:26.8]} 16. Bg3 {[%clk 0:02:06.8]} 16... Ne7 {[%clk
0:02:27.4]} 17. b4 {[%clk 0:01:49.4]} 17... Nf5 {[%clk 0:02:26.9]} 18. Qd2
{[%clk 0:01:49.7]} 18... d4 {[%clk 0:02:20.4]} 19. exd4 {[%clk 0:01:43.3]} 19...
Qxd4 {[%clk 0:02:19.4]} 20. Qxd4 {[%clk 0:01:37.2]} 20... Nxd4 {[%clk
0:02:20.3]} 21. Rfd1 {[%clk 0:01:23.8]} 21... Rfd8 {[%clk 0:02:14.8]} 22. Bd6
{[%clk 0:01:13]} 22... Nxe2+ {[%clk 0:02:13.7]} 23. Nxe2 {[%clk 0:01:12.9]}
23... Nd5 {[%clk 0:02:13.9]} 24. a3 {[%clk 0:01:10.2]} 24... b6 {[%clk 0:02:12]}
25. Rac1 {[%clk 0:01:02.9]} 25... bxc5 {[%clk 0:01:58.5]} 26. bxc5 {[%clk
0:00:56.1]} 26... Nf6 {[%clk 0:01:51.8]} 27. Nd4 {[%clk 0:00:51.3]} 27... Bg4
{[%clk 0:01:42.3]} 28. Re1 {[%clk 0:00:41.5]} 28... Re8 {[%clk 0:01:08.2]} 29.
h3 {[%clk 0:00:37.5]} 29... Be6 {[%clk 0:01:06]} 30. Rb1 {[%clk 0:00:37.5]}
30... g6 {[%clk 0:00:59.1]} 31. Rb7 {[%clk 0:00:34.7]} 31... a6 {[%clk
0:00:58.9]} 32. Nxe6 {[%clk 0:00:22.3]} 32... Rxe6 {[%clk 0:00:57.6]} 33. Ra7
{[%clk 0:00:22.9]} 33... Rc6 {[%clk 0:00:43.4]} 34. Rb1 {[%clk 0:00:22.7]} 34...
Ne8 {[%clk 0:00:38.8]} 35. Bf4 {[%clk 0:00:07.3]} 35... g5 {[%clk 0:00:37.5]}
36. Be3 {[%clk 0:00:07.3]} 36... Ng7 {[%clk 0:00:28.8]} 37. Rb8+ {[%clk
0:00:06.5]} 37... Re8 {[%clk 0:00:23.1]} 38. Rbb7 {[%clk 0:00:05.7]} 38... Rf8
{[%clk 0:00:20.7]} 39. Rb6 {[%clk 0:00:01.9]} 39... Rfc8 {[%clk 0:00:18.1]} 40.
Raxa6 {[%clk 0:00:01.1]} 40... R6c7 {[%clk 0:00:15.9]} 0-1

[Event "Early-Titled-Tuesday-Blitz-January-23-2024"]
[Site "Chess.com"]
[Date "2024.01.23"]
[Round "1"]
[White "alekroth65"]
[Black "viktorskliarov"]
[Result "0-1"]
[WhiteElo "2363"]
[BlackElo "2676"]
[TimeControl "180+1"]
[EndTime "8:07:27 PST"]
[Termination "viktorskliarov won on time"]

1. d4 {[%clk 0:03:00.9]} 1... Nf6 {[%clk 0:02:59.9]} 2. c4 {[%clk 0:03:00.7]}
2... e6 {[%clk 0:02:58.4]} 3. Nf3 {[%clk 0:03:00.4]} 3... b6 {[%clk 0:02:55.6]}
4. g3 {[%clk 0:02:58.5]} 4... Bb7 {[%clk 0:02:54.7]} 5. Bg2 {[%clk 0:02:57.4]}
5... Be7 {[%clk 0:02:55.4]} 6. Nc3 {[%clk 0:02:55.3]} 6... O-O {[%clk 0:02:55]}
7. Qc2 {[%clk 0:02:47.2]} 7... Na6 {[%clk 0:02:46.4]} 8. O-O {[%clk 0:02:41.8]}
8... c5 {[%clk 0:02:40.6]} 9. a3 {[%clk 0:02:13.1]} 9... cxd4 {[%clk 0:02:34]}
10. Nxd4 {[%clk 0:02:14]} 10... Bxg2 {[%clk 0:02:34.1]} 11. Kxg2 {[%clk
0:02:14.1]} 11... Rc8 {[%clk 0:02:34.5]} 12. Qd3 {[%clk 0:01:54.2]} 12... Qc7
{[%clk 0:01:57.5]} 13. b3 {[%clk 0:01:47.3]} 13... d5 {[%clk 0:01:40]} 14. Ncb5
{[%clk 0:01:18.4]} 14... Qd7 {[%clk 0:01:28.4]} 15. cxd5 {[%clk 0:01:11.6]}
15... Qxd5+ {[%clk 0:01:28.2]} 16. Qf3 {[%clk 0:01:10.8]} 16... Ne4 {[%clk
0:01:10.5]} 17. Bb2 {[%clk 0:00:59.4]} 17... Nc7 {[%clk 0:00:55.4]} 18. Nxa7
{[%clk 0:00:54.9]} 18... Ra8 {[%clk 0:00:53.7]} 19. Nac6 {[%clk 0:00:54.8]}
19... Bf6 {[%clk 0:00:54.2]} 20. Rfd1 {[%clk 0:00:47.4]} 20... Nc5 {[%clk
0:00:27]} 21. Qxd5 {[%clk 0:00:45.3]} 21... Nxd5 {[%clk 0:00:27.9]} 22. Rab1
{[%clk 0:00:36.5]} 22... h5 {[%clk 0:00:26.9]} 23. Nb5 {[%clk 0:00:33.5]} 23...
Rfc8 {[%clk 0:00:21.4]} 24. Bxf6 {[%clk 0:00:22.5]} 24... Rxc6 {[%clk
0:00:20.7]} 25. Bd4 {[%clk 0:00:20.9]} 25... Rcc8 {[%clk 0:00:17.7]} 26. Rdc1
{[%clk 0:00:15]} 26... Ne4 {[%clk 0:00:16]} 27. f3 {[%clk 0:00:09.7]} 27... Nd2
{[%clk 0:00:14.2]} 28. Rxc8+ {[%clk 0:00:07.7]} 28... Rxc8 {[%clk 0:00:14.3]}
29. Rb2 {[%clk 0:00:07.8]} 29... e5 {[%clk 0:00:11.1]} 30. Bxe5 {[%clk
0:00:04.3]} 30... Ne3+ {[%clk 0:00:11.3]} 31. Kf2 {[%clk 0:00:03.2]} 31... Nd1+
{[%clk 0:00:11.4]} 32. Ke1 {[%clk 0:00:03.2]} 32... Nxb2 {[%clk 0:00:12.3]} 33.
Kxd2 {[%clk 0:00:03]} 33... Rc5 {[%clk 0:00:10.8]} 34. Bxb2 {[%clk 0:00:02.5]}
34... Rxb5 {[%clk 0:00:11.2]} 35. e4 {[%clk 0:00:01.7]} 35... Rxb3 {[%clk
0:00:10.7]} 0-1

[Event "Early-Titled-Tuesday-Blitz-January-23-2024"]
[Site "Chess.com"]
[Date "2024.01.23"]
[Round "1"]
[White "1mbl4"]
[Black "stratacticos"]
[Result "1-0"]
[WhiteElo "2555"]
[BlackElo "2020"]
[TimeControl "180+1"]
[EndTime "8:07:29 PST"]
[Termination "1mbl4 won by resignation"]

1. b3 {[%clk 0:03:00.9]} 1... e5 {[%clk 0:02:55.9]} 2. Bb2 {[%clk 0:03:01]} 2...
Nc6 {[%clk 0:02:54.3]} 3. e3 {[%clk 0:03:00.9]} 3... a6 {[%clk 0:02:54.2]} 4.
Nf3 {[%clk 0:02:59.8]} 4... d6 {[%clk 0:02:53.5]} 5. d4 {[%clk 0:02:58.8]} 5...
exd4 {[%clk 0:02:52.2]} 6. Nxd4 {[%clk 0:02:54]} 6... Nxd4 {[%clk 0:02:51.6]} 7.
Qxd4 {[%clk 0:02:52.2]} 7... Nf6 {[%clk 0:02:50.7]} 8. Be2 {[%clk 0:02:49.8]}
8... Be7 {[%clk 0:02:47.3]} 9. O-O {[%clk 0:02:49.3]} 9... O-O {[%clk
0:02:45.3]} 10. c4 {[%clk 0:02:49.4]} 10... c5 {[%clk 0:02:39.8]} 11. Qd3 {[%clk
0:02:44.8]} 11... d5 {[%clk 0:02:36.8]} 12. Nc3 {[%clk 0:02:36]} 12... dxc4
{[%clk 0:02:35.7]} 13. bxc4 {[%clk 0:02:32.2]} 13... Qxd3 {[%clk 0:02:33.4]} 14.
Bxd3 {[%clk 0:02:32.4]} 14... Be6 {[%clk 0:02:31.8]} 15. e4 {[%clk 0:02:28.1]}
15... Rfd8 {[%clk 0:02:30.6]} 16. Rfd1 {[%clk 0:02:25.6]} 16... Rd7 {[%clk
0:02:15.9]} 17. Rab1 {[%clk 0:02:20.2]} 17... Rad8 {[%clk 0:02:14.7]} 18. Nd5
{[%clk 0:02:19.8]} 18... Bxd5 {[%clk 0:02:06.2]} 19. cxd5 {[%clk 0:02:18.3]}
19... b5 {[%clk 0:02:02.1]} 20. f3 {[%clk 0:02:11.4]} 20... c4 {[%clk
0:02:00.8]} 21. Be2 {[%clk 0:02:08.1]} 21... Bc5+ {[%clk 0:02:00.1]} 22. Kf1
{[%clk 0:02:05.6]} 22... Ne8 {[%clk 0:01:54.7]} 23. Bc3 {[%clk 0:02:01.2]} 23...
f5 {[%clk 0:01:46]} 24. a4 {[%clk 0:01:54.1]} 24... fxe4 {[%clk 0:01:45.2]} 25.
fxe4 {[%clk 0:01:53.7]} 25... Nd6 {[%clk 0:01:39.5]} 26. Bf3 {[%clk 0:01:32.4]}
26... bxa4 {[%clk 0:01:33.1]} 27. Ke2 {[%clk 0:01:14.9]} 27... Nb5 {[%clk
0:01:31.5]} 28. Ba1 {[%clk 0:01:10.4]} 28... c3 {[%clk 0:01:29.8]} 29. Rbc1
{[%clk 0:01:08.2]} 29... Nd4+ {[%clk 0:01:17.5]} 30. Kd3 {[%clk 0:00:55.7]}
30... Nb3 {[%clk 0:01:16.9]} 31. Rxc3 {[%clk 0:00:51.7]} 31... Bd6 {[%clk
0:01:12.6]} 32. Rc6 {[%clk 0:00:47.9]} 32... Bxh2 {[%clk 0:01:04.4]} 33. Bc3
{[%clk 0:00:40.8]} 33... Bd6 {[%clk 0:00:51.5]} 34. Kc4 {[%clk 0:00:39.5]} 34...
Rb7 {[%clk 0:00:45.7]} 35. e5 {[%clk 0:00:37]} 35... Bf8 {[%clk 0:00:38]} 36. d6
{[%clk 0:00:36.9]} 36... Rb5 {[%clk 0:00:34.1]} 37. e6 {[%clk 0:00:30.7]} 37...
Bxd6 {[%clk 0:00:22.9]} 38. Rdxd6 {[%clk 0:00:29]} 38... Rbb8 {[%clk 0:00:18]}
39. Bd5 {[%clk 0:00:25]} 39... a3 {[%clk 0:00:12.8]} 40. e7+ {[%clk 0:00:23.1]}
1-0

[Event "Early-Titled-Tuesday-Blitz-January-23-2024"]
[Site "Chess.com"]
[Date "2024.01.23"]
[Round "1"]
[White "Durarbayli"]
[Black "tusplingher"]
[Result "0-1"]
[WhiteElo "2878"]
[BlackElo "2508"]
[TimeControl "180+1"]
[EndTime "8:07:30 PST"]
[Termination "tusplingher won by resignation"]

1. c4 {[%clk 0:02:50.8]} 1... e5 {[%clk 0:02:58.4]} 2. Nc3 {[%clk 0:02:48.3]}
2... Nc6 {[%clk 0:02:57.6]} 3. g3 {[%clk 0:02:43.6]} 3... g6 {[%clk 0:02:57.2]}
4. Bg2 {[%clk 0:02:35.8]} 4... Bg7 {[%clk 0:02:57.3]} 5. e4 {[%clk 0:02:36.1]}
5... d6 {[%clk 0:02:53.3]} 6. Nge2 {[%clk 0:02:36.4]} 6... h5 {[%clk 0:02:50.8]}
7. h3 {[%clk 0:02:36.1]} 7... Nge7 {[%clk 0:02:43.2]} 8. d3 {[%clk 0:02:35.5]}
8... Be6 {[%clk 0:02:40.7]} 9. Bg5 {[%clk 0:02:34.1]} 9... f6 {[%clk 0:02:07.5]}
10. Be3 {[%clk 0:02:33]} 10... h4 {[%clk 0:02:05.4]} 11. g4 {[%clk 0:02:30.3]}
11... f5 {[%clk 0:02:02.8]} 12. gxf5 {[%clk 0:02:07]} 12... gxf5 {[%clk
0:01:59.8]} 13. f4 {[%clk 0:02:07.5]} 13... Qd7 {[%clk 0:01:48.6]} 14. Qa4
{[%clk 0:01:58.6]} 14... a6 {[%clk 0:01:24.9]} 15. O-O-O {[%clk 0:01:54.7]}
15... O-O-O {[%clk 0:01:22.6]} 16. Nd5 {[%clk 0:01:46]} 16... Kb8 {[%clk
0:00:55.7]} 17. Kb1 {[%clk 0:01:20.2]} 17... Bh6 {[%clk 0:00:50.9]} 18. Bc1
{[%clk 0:00:48.1]} 18... Ng6 {[%clk 0:00:34.6]} 19. exf5 {[%clk 0:00:20.3]}
19... Bxf5 {[%clk 0:00:34.4]} 20. Nf6 {[%clk 0:00:21]} 20... Qf7 {[%clk
0:00:33.1]} 21. Bxc6 {[%clk 0:00:11.4]} 21... Qxf6 {[%clk 0:00:33.1]} 22. Qb3
{[%clk 0:00:10.3]} 22... Bc8 {[%clk 0:00:31.1]} 23. fxe5 {[%clk 0:00:10.4]}
23... Nxe5 {[%clk 0:00:29.1]} 24. Be4 {[%clk 0:00:10.2]} 24... Bxc1 {[%clk
0:00:26.1]} 25. Rxc1 {[%clk 0:00:11.1]} 25... Nd7 {[%clk 0:00:18.6]} 26. d4
{[%clk 0:00:08.1]} 26... Rde8 {[%clk 0:00:17.2]} 27. Bf3 {[%clk 0:00:06.9]}
27... Rhf8 {[%clk 0:00:17]} 28. Rhf1 {[%clk 0:00:06.9]} 28... Qh6 {[%clk
0:00:14.5]} 29. c5 {[%clk 0:00:06.9]} 29... Re3 {[%clk 0:00:14.3]} 30. Rc3
{[%clk 0:00:05.9]} 30... Rfxf3 {[%clk 0:00:12.2]} 31. Rxf3 {[%clk 0:00:06.2]}
31... Rxe2 {[%clk 0:00:12.7]} 32. a3 {[%clk 0:00:06.7]} 32... Re1+ {[%clk
0:00:11.2]} 33. Ka2 {[%clk 0:00:06.8]} 33... dxc5 {[%clk 0:00:09.1]} 34. dxc5
{[%clk 0:00:07]} 34... Ne5 {[%clk 0:00:08.6]} 35. Rfe3 {[%clk 0:00:03]} 35...
Rxe3 {[%clk 0:00:07.7]} 36. Rxe3 {[%clk 0:00:03.9]} 36... Be6 {[%clk 0:00:08.1]}
37. Rxe5 {[%clk 0:00:04.1]} 37... Bxb3+ {[%clk 0:00:08]} 38. Kxb3 {[%clk
0:00:05]} 38... Qc6 {[%clk 0:00:07.5]} 0-1

[Event "Early-Titled-Tuesday-Blitz-January-23-2024"]
[Site "Chess.com"]
[Date "2024.01.23"]
[Round "1"]
[White "DarZay"]
[Black "HATilay"]
[Result "1-0"]
[WhiteElo "2273"]
[BlackElo "2590"]
[TimeControl "180+1"]
[EndTime "8:07:36 PST"]
[Termination "DarZay won by resignation"]

1. e4 {[%clk 0:03:00.9]} 1... c5 {[%clk 0:02:57]} 2. Nf3 {[%clk 0:03:00.5]} 2...
d6 {[%clk 0:02:41.5]} 3. d4 {[%clk 0:02:58.3]} 3... cxd4 {[%clk 0:02:30.2]} 4.
Nxd4 {[%clk 0:02:57.9]} 4... Nf6 {[%clk 0:02:29.9]} 5. Nc3 {[%clk 0:02:57.1]}
5... a6 {[%clk 0:02:30.4]} 6. a4 {[%clk 0:02:53]} 6... g6 {[%clk 0:02:20.2]} 7.
Bc4 {[%clk 0:02:46.8]} 7... Bg7 {[%clk 0:02:18.8]} 8. O-O {[%clk 0:02:45.9]}
8... O-O {[%clk 0:01:26.2]} 9. h3 {[%clk 0:02:45.1]} 9... Bd7 {[%clk 0:01:25.5]}
10. Be3 {[%clk 0:02:38.6]} 10... Nc6 {[%clk 0:01:26.1]} 11. f4 {[%clk
0:02:32.9]} 11... Rc8 {[%clk 0:01:25.9]} 12. Ba2 {[%clk 0:02:30.5]} 12... Nb4
{[%clk 0:01:08.1]} 13. Bb3 {[%clk 0:02:27.6]} 13... e6 {[%clk 0:01:02.8]} 14. f5
{[%clk 0:02:22]} 14... e5 {[%clk 0:01:00.8]} 15. Nde2 {[%clk 0:02:14.9]} 15...
Bc6 {[%clk 0:01:00.4]} 16. Ng3 {[%clk 0:02:15]} 16... d5 {[%clk 0:00:58.3]} 17.
Bc5 {[%clk 0:02:13.6]} 17... Qa5 {[%clk 0:00:53.4]} 18. Bxf8 {[%clk 0:02:12.8]}
18... Rxf8 {[%clk 0:00:53.6]} 19. fxg6 {[%clk 0:02:10]} 19... hxg6 {[%clk
0:00:51.5]} 20. Rxf6 {[%clk 0:01:45.5]} 20... Bxf6 {[%clk 0:00:51.2]} 21. exd5
{[%clk 0:01:45.8]} 21... Bd7 {[%clk 0:00:47.2]} 22. Nce4 {[%clk 0:01:42.9]}
22... Bg7 {[%clk 0:00:47.6]} 23. c3 {[%clk 0:01:36.7]} 23... Qb6+ {[%clk
0:00:44.9]} 24. Kh2 {[%clk 0:01:34.9]} 24... f5 {[%clk 0:00:45.4]} 25. Ng5
{[%clk 0:01:29.3]} 25... e4 {[%clk 0:00:43.2]} 26. d6+ {[%clk 0:01:23.9]} 26...
Kh8 {[%clk 0:00:41.8]} 27. cxb4 {[%clk 0:01:23.8]} 27... Be5 {[%clk 0:00:38.2]}
28. Qd5 {[%clk 0:01:18.6]} 28... Bf4 {[%clk 0:00:21.6]} 29. Nf7+ {[%clk
0:01:08]} 29... Kh7 {[%clk 0:00:21.9]} 30. Qc5 {[%clk 0:01:02.1]} 30... Qxc5
{[%clk 0:00:10]} 31. bxc5 {[%clk 0:01:01.7]} 31... Kg7 {[%clk 0:00:09.1]} 32. h4
{[%clk 0:00:50.6]} 32... Rxf7 {[%clk 0:00:09.1]} 33. Bxf7 {[%clk 0:00:49.9]}
33... Kxf7 {[%clk 0:00:10]} 34. b3 {[%clk 0:00:44.4]} 34... Ke6 {[%clk 0:00:09]}
35. Rd1 {[%clk 0:00:43.4]} 35... Be5 {[%clk 0:00:08]} 36. Kh3 {[%clk 0:00:41.6]}
36... Kf6 {[%clk 0:00:08.5]} 37. Ne2 {[%clk 0:00:40.2]} 37... f4+ {[%clk
0:00:09]} 38. g4 {[%clk 0:00:37.3]} 38... fxg3+ {[%clk 0:00:08.2]} 39. Kg2
{[%clk 0:00:37.7]} 39... Bg4 {[%clk 0:00:08.6]} 40. Rf1+ {[%clk 0:00:37.1]}
40... Bf3+ {[%clk 0:00:08.6]} 41. Rxf3+ {[%clk 0:00:30.9]} 41... exf3+ {[%clk
0:00:09.5]} 42. Kxf3 {[%clk 0:00:31.3]} 42... Ke6 {[%clk 0:00:10.2]} 43. Nxg3
{[%clk 0:00:30.5]} 43... b6 {[%clk 0:00:10.7]} 44. b4 {[%clk 0:00:27.3]} 44...
a5 {[%clk 0:00:11.3]} 45. bxa5 {[%clk 0:00:24.3]} 45... bxc5 {[%clk 0:00:10.9]}
46. Ne4 {[%clk 0:00:24.2]} 46... c4 {[%clk 0:00:10.6]} 47. Ke3 {[%clk
0:00:22.1]} 47... Bd4+ {[%clk 0:00:11.2]} 48. Kxd4 {[%clk 0:00:22]} 48... Kd7
{[%clk 0:00:12.1]} 49. Kxc4 {[%clk 0:00:22]} 49... Kc6 {[%clk 0:00:13]} 50. Kd4
{[%clk 0:00:22.2]} 1-0

[Event "Early-Titled-Tuesday-Blitz-January-23-2024"]
[Site "Chess.com"]
[Date "2024.01.23"]
[Round "1"]
[White "EvilMorty23"]
[Black "Indianlad"]
[Result "0-1"]
[WhiteElo "2515"]
[BlackElo "2982"]
[TimeControl "180+1"]
[EndTime "8:07:37 PST"]
[Termination "Indianlad won on time"]

1. e4 {[%clk 0:03:00.9]} 1... b6 {[%clk 0:02:59.1]} 2. d4 {[%clk 0:03:00.8]}
2... Bb7 {[%clk 0:02:59.5]} 3. Nd2 {[%clk 0:03:01.2]} 3... Nc6 {[%clk
0:02:59.8]} 4. Ngf3 {[%clk 0:03:00.9]} 4... e6 {[%clk 0:02:57.1]} 5. c3 {[%clk
0:02:59.7]} 5... g6 {[%clk 0:02:57]} 6. Bd3 {[%clk 0:02:59]} 6... Bg7 {[%clk
0:02:57.3]} 7. O-O {[%clk 0:02:58.6]} 7... d6 {[%clk 0:02:57.8]} 8. Re1 {[%clk
0:02:58.7]} 8... Nf6 {[%clk 0:02:55.7]} 9. Nf1 {[%clk 0:02:58.7]} 9... O-O
{[%clk 0:02:55.5]} 10. Ng3 {[%clk 0:02:58.8]} 10... h6 {[%clk 0:02:55.4]} 11. h4
{[%clk 0:02:57.1]} 11... e5 {[%clk 0:02:55.2]} 12. Be3 {[%clk 0:02:52.8]} 12...
Ng4 {[%clk 0:02:51.9]} 13. h5 {[%clk 0:02:40.9]} 13... Nxe3 {[%clk 0:02:51.4]}
14. fxe3 {[%clk 0:02:39.9]} 14... Ne7 {[%clk 0:02:40.1]} 15. Rf1 {[%clk
0:02:35.9]} 15... Qd7 {[%clk 0:02:26.4]} 16. Nh4 {[%clk 0:02:29.7]} 16... Qe6
{[%clk 0:02:25.6]} 17. Qe2 {[%clk 0:02:19.5]} 17... Bf6 {[%clk 0:02:13.9]} 18.
d5 {[%clk 0:01:52.4]} 18... Nxd5 {[%clk 0:01:54.6]} 19. exd5 {[%clk 0:01:51.6]}
19... Bxd5 {[%clk 0:01:55.2]} 20. e4 {[%clk 0:01:37]} 20... Bxh4 {[%clk
0:01:52.1]} 21. exd5 {[%clk 0:01:36.6]} 21... Qxd5 {[%clk 0:01:52.8]} 22. Kh2
{[%clk 0:01:16.8]} 22... Bxg3+ {[%clk 0:01:33.1]} 23. Kxg3 {[%clk 0:01:17.7]}
23... Qe6 {[%clk 0:01:32.5]} 24. hxg6 {[%clk 0:01:02.1]} 24... fxg6 {[%clk
0:01:32.3]} 25. Qe4 {[%clk 0:00:58.2]} 25... Kg7 {[%clk 0:01:32.6]} 26. Bc4
{[%clk 0:00:54]} 26... Qe7 {[%clk 0:01:32.7]} 27. Bd5 {[%clk 0:00:47.6]} 27...
Rad8 {[%clk 0:01:24.6]} 28. Qg4 {[%clk 0:00:38]} 28... h5 {[%clk 0:01:23.5]} 29.
Qe4 {[%clk 0:00:34.2]} 29... Rxf1 {[%clk 0:01:08.2]} 30. Rxf1 {[%clk 0:00:33.8]}
30... Rf8 {[%clk 0:01:08.1]} 31. Rxf8 {[%clk 0:00:22.2]} 31... Qxf8 {[%clk
0:01:08.7]} 32. Qh4 {[%clk 0:00:22.3]} 32... Kh6 {[%clk 0:01:07.3]} 33. Qc4
{[%clk 0:00:11.9]} 33... g5 {[%clk 0:01:03.5]} 34. Bf7 {[%clk 0:00:06.5]} 34...
Qe7 {[%clk 0:00:51.7]} 35. Kh2 {[%clk 0:00:06.8]} 35... Qf6 {[%clk 0:00:51.2]}
36. Kh1 {[%clk 0:00:05.8]} 36... g4 {[%clk 0:00:49.5]} 37. Qxc7 {[%clk
0:00:05.7]} 37... g3 {[%clk 0:00:47.4]} 38. Bc4 {[%clk 0:00:05.2]} 38... Qh4+
{[%clk 0:00:45.7]} 39. Kg1 {[%clk 0:00:05]} 39... Qh2+ {[%clk 0:00:46.6]} 40.
Kf1 {[%clk 0:00:05.9]} 40... Qh1+ {[%clk 0:00:46.8]} 41. Ke2 {[%clk 0:00:06.5]}
41... Qxg2+ {[%clk 0:00:47.5]} 42. Kd3 {[%clk 0:00:06.6]} 42... Qf3+ {[%clk
0:00:39.6]} 43. Kc2 {[%clk 0:00:06.9]} 43... Qf6 {[%clk 0:00:37.7]} 44. Qc6
{[%clk 0:00:07.1]} 44... h4 {[%clk 0:00:36.8]} 45. Qe4 {[%clk 0:00:04.4]} 45...
Qg6 {[%clk 0:00:33.5]} 0-1